[Event "Torneo Nuevo Centro. Jornada 11"]
[Site "Chess.com"]
[Date "2020.08.28"]
[Round "6"]
[White "Sampedro Roig, Josep Francesc"]
[Black "Aymerich Rosell, Pablo"]
[Result "0-1"]
[WhiteElo "1841"]
[BlackElo "1997"]
[TimeControl "180+2"]
[EndTime "11:32:02 PDT"]
[Termination "Victoria de jasikevic por tiempo"]

1. e4 {[%clk 0:03:00]} 1... c6 {[%clk 0:03:00.4]} 2. d4 {[%clk 0:02:54.5]} 2...
d5 {[%clk 0:03:01.1]} 3. Nc3 {[%clk 0:02:56.1]} 3... dxe4 {[%clk 0:03:01.1]} 4.
Nxe4 {[%clk 0:02:58]} 4... Nf6 {[%clk 0:03:02.1]} 5. Ng3 {[%clk 0:02:59.6]} 5...
h5 {[%clk 0:03:01.9]} 6. Nf3 {[%clk 0:02:58.5]} 6... h4 {[%clk 0:03:02.4]} 7.
Ne2 {[%clk 0:02:59.3]} 7... Bf5 {[%clk 0:03:03.1]} 8. Nf4 {[%clk 0:02:53.8]}
8... e6 {[%clk 0:02:55.7]} 9. Bd3 {[%clk 0:02:50.4]} 9... Nbd7 {[%clk
0:02:45.6]} 10. Bxf5 {[%clk 0:02:45]} 10... Qa5+ {[%clk 0:02:46.1]} 11. Bd2
{[%clk 0:02:31.7]} 11... Qxf5 {[%clk 0:02:46.4]} 12. Nd3 {[%clk 0:02:21]} 12...
h3 {[%clk 0:02:43.1]} 13. g3 {[%clk 0:02:20.4]} 13... O-O-O {[%clk 0:02:41.1]}
14. Qe2 {[%clk 0:02:17.4]} 14... Bd6 {[%clk 0:02:24.3]} 15. O-O-O {[%clk
0:02:17.3]} 15... Kb8 {[%clk 0:02:24.1]} 16. Kb1 {[%clk 0:02:17.7]} 16... c5
{[%clk 0:02:20.7]} 17. dxc5 {[%clk 0:02:06.2]} 17... Nxc5 {[%clk 0:02:21.6]} 18.
Nxc5 {[%clk 0:01:59.1]} 18... Qxc5 {[%clk 0:02:20.7]} 19. Be3 {[%clk 0:01:53.5]}
19... Qa5 {[%clk 0:02:15.6]} 20. Rxd6 {[%clk 0:01:41.8]} 20... Rxd6 {[%clk
0:02:12.4]} 21. Bf4 {[%clk 0:01:42.4]} 21... Qb6 {[%clk 0:02:10.8]} 22. Rd1
{[%clk 0:01:39.4]} 22... Nd5 {[%clk 0:02:08.6]} 23. Bxd6+ {[%clk 0:01:35.3]}
23... Qxd6 {[%clk 0:02:09.8]} 24. c4 {[%clk 0:01:30.3]} 24... Rd8 {[%clk
0:02:02.5]} 25. cxd5 {[%clk 0:01:17.7]} 25... exd5 {[%clk 0:02:01.9]} 26. Qe5
{[%clk 0:01:18.2]} 26... f6 {[%clk 0:02:01.3]} 27. Qxd6+ {[%clk 0:01:18.7]}
27... Rxd6 {[%clk 0:02:03.2]} 28. Rd4 {[%clk 0:01:17.2]} 28... Kc7 {[%clk
0:02:02.1]} 29. Nh4 {[%clk 0:01:17.1]} 29... Kc6 {[%clk 0:02:00.6]} 30. Kc2
{[%clk 0:01:17.4]} 30... Re6 {[%clk 0:02:00.2]} 31. Nf5 {[%clk 0:01:11.8]} 31...
Re1 {[%clk 0:01:55.5]} 32. Rd2 {[%clk 0:01:01.2]} 32... Rh1 {[%clk 0:01:55.3]}
33. f4 {[%clk 0:01:01.9]} 33... g6 {[%clk 0:01:53]} 34. Ne7+ {[%clk 0:01:02.2]}
34... Kc5 {[%clk 0:01:53.1]} 35. Nxg6 {[%clk 0:01:04.1]} 35... d4 {[%clk
0:01:53.6]} 36. Ne7 {[%clk 0:00:58]} 36... Kc4 {[%clk 0:01:53.3]} 37. Nf5 {[%clk
0:00:57.8]} 37... d3+ {[%clk 0:01:53.6]} 38. Rxd3 {[%clk 0:00:49.4]} 38... Rxh2+
{[%clk 0:01:53.4]} 39. Rd2 {[%clk 0:00:50.3]} 39... Rxd2+ {[%clk 0:01:49.6]} 40.
Kxd2 {[%clk 0:00:50.8]} 40... h2 {[%clk 0:01:48.9]} 41. Ne3+ {[%clk 0:00:07.4]}
41... Kb5 {[%clk 0:01:41.8]} 0

[Event "Torneo Nuevo Centro. Jornada 11"]
[Site "Chess.com"]
[Date "2020.08.28"]
[Round "6"]
[White "Chofre Murcia, Adrián"]
[Black "Serrano Requena, Guillem"]
[Result "1-0"]
[WhiteElo "1634"]
[BlackElo "1318"]
[TimeControl "180+2"]
[EndTime "11:32:31 PDT"]
[Termination "Victoria de Kelorian por jaque mate"]

1. e4 {[%clk 0:03:01.9]} 1... c5 {[%clk 0:02:59.5]} 2. Nf3 {[%clk 0:03:02.5]}
2... g6 {[%clk 0:02:57.6]} 3. Bc4 {[%clk 0:03:01.2]} 3... e6 {[%clk 0:02:57.7]}
4. O-O {[%clk 0:03:00.3]} 4... Bg7 {[%clk 0:02:54.9]} 5. c3 {[%clk 0:03:01.2]}
5... Nc6 {[%clk 0:02:54.1]} 6. d4 {[%clk 0:02:59.4]} 6... cxd4 {[%clk
0:02:54.5]} 7. cxd4 {[%clk 0:02:59.5]} 7... Nge7 {[%clk 0:02:54.2]} 8. Nc3
{[%clk 0:02:59]} 8... d5 {[%clk 0:02:53]} 9. exd5 {[%clk 0:02:58.4]} 9... exd5
{[%clk 0:02:54]} 10. Bb5 {[%clk 0:02:49.8]} 10... O-O {[%clk 0:02:51.6]} 11. Bg5
{[%clk 0:02:48.1]} 11... Qc7 {[%clk 0:02:40.2]} 12. Bxc6 {[%clk 0:02:42.9]}
12... bxc6 {[%clk 0:02:33.9]} 13. Re1 {[%clk 0:02:42.3]} 13... Be6 {[%clk
0:02:27.9]} 14. b3 {[%clk 0:02:31.7]} 14... c5 {[%clk 0:02:15.5]} 15. Rc1 {[%clk
0:02:20.8]} 15... a6 {[%clk 0:02:06]} 16. Bxe7 {[%clk 0:02:19.9]} 16... Qxe7
{[%clk 0:02:06.2]} 17. Nxd5 {[%clk 0:02:20.2]} 17... Qd6 {[%clk 0:02:00.6]} 18.
Nc3 {[%clk 0:02:10.1]} 18... cxd4 {[%clk 0:01:46.8]} 19. Ne4 {[%clk 0:02:01.4]}
19... Qb6 {[%clk 0:01:30.1]} 20. Qd3 {[%clk 0:01:52.2]} 20... Rac8 {[%clk
0:01:18.6]} 21. h3 {[%clk 0:01:37.8]} 21... Rfd8 {[%clk 0:01:09.7]} 22. Neg5
{[%clk 0:01:30.5]} 22... Bf5 {[%clk 0:01:02.8]} 23. Ne4 {[%clk 0:01:18.6]} 23...
Rc3 {[%clk 0:00:52.5]} 24. Rxc3 {[%clk 0:01:09.5]} 24... dxc3 {[%clk 0:00:50.9]}
25. Qc2 {[%clk 0:00:59.7]} 25... Qb4 {[%clk 0:00:31]} 26. g4 {[%clk 0:00:49.9]}
26... Bxe4 {[%clk 0:00:20.1]} 27. Rxe4 {[%clk 0:00:42.8]} 27... Qb7 {[%clk
0:00:19.2]} 28. Kg2 {[%clk 0:00:31.2]} 28... Rd2 {[%clk 0:00:12.9]} 29. Nxd2
{[%clk 0:00:25]} 29... cxd2 {[%clk 0:00:13.6]} 30. f3 {[%clk 0:00:24.5]} 30...
Bc3 {[%clk 0:00:08.6]} 31. Qxc3 {[%clk 0:00:18.3]} 31... d1=Q {[%clk 0:00:08.2]}
32. Re8# {[%clk 0:00:18.7]} 1

[Event "Torneo Nuevo Centro. Jornada 11"]
[Site "Chess.com"]
[Date "2020.08.28"]
[Round "6"]
[White "Lloret Ramis, Juan José"]
[Black "Carbonell Sancho, Marc"]
[Result "0-1"]
[WhiteElo "1978"]
[BlackElo "1971"]
[TimeControl "180+2"]
[EndTime "11:32:39 PDT"]
[Termination "Victoria de AkaliGOD por tiempo"]

1. c4 {[%clk 0:03:01.9]} 1... e5 {[%clk 0:02:55.1]} 2. Nc3 {[%clk 0:03:01.9]}
2... Nc6 {[%clk 0:02:51.5]} 3. Nf3 {[%clk 0:03:02.7]} 3... Bc5 {[%clk
0:02:51.7]} 4. e3 {[%clk 0:03:03.4]} 4... a6 {[%clk 0:02:51.4]} 5. d4 {[%clk
0:03:04]} 5... exd4 {[%clk 0:02:51.4]} 6. exd4 {[%clk 0:03:03.5]} 6... Ba7
{[%clk 0:02:53.3]} 7. d5 {[%clk 0:03:01.7]} 7... Nce7 {[%clk 0:02:53.5]} 8. Be2
{[%clk 0:03:01.3]} 8... h6 {[%clk 0:02:54.4]} 9. O-O {[%clk 0:03:01]} 9... Nf6
{[%clk 0:02:55.7]} 10. d6 {[%clk 0:02:57.2]} 10... cxd6 {[%clk 0:02:55.4]} 11.
Qxd6 {[%clk 0:02:57.7]} 11... O-O {[%clk 0:02:56.7]} 12. b3 {[%clk 0:02:28.9]}
12... Nf5 {[%clk 0:02:55.7]} 13. Qf4 {[%clk 0:02:23.9]} 13... d5 {[%clk
0:01:30.4]} 14. cxd5 {[%clk 0:02:01]} 14... Nxd5 {[%clk 0:01:31]} 15. Nxd5
{[%clk 0:02:02]} 15... Qxd5 {[%clk 0:01:32.1]} 16. Ba3 {[%clk 0:01:53.2]} 16...
Re8 {[%clk 0:01:31.5]} 17. Bc4 {[%clk 0:01:47.6]} 17... Qc6 {[%clk 0:01:13.3]}
18. Rac1 {[%clk 0:01:39.1]} 18... Be6 {[%clk 0:01:03.6]} 19. Bd3 {[%clk
0:01:23.3]} 19... Qd7 {[%clk 0:01:00]} 20. Rfd1 {[%clk 0:00:41]} 20... Rad8
{[%clk 0:00:48.2]} 21. g4 {[%clk 0:00:23.9]} 21... Nd4 {[%clk 0:00:41.8]} 22.
Nxd4 {[%clk 0:00:22.3]} 22... Qxd4 {[%clk 0:00:42.1]} 23. Bh7+ {[%clk
0:00:22.7]} 23... Kxh7 {[%clk 0:00:40.3]} 24. Rxd4 {[%clk 0:00:23.7]} 24... Rxd4
{[%clk 0:00:41.7]} 25. Qc7 {[%clk 0:00:20.5]} 25... Rxg4+ {[%clk 0:00:43.6]} 26.
Kf1 {[%clk 0:00:20.1]} 26... Rg5 {[%clk 0:00:40.2]} 27. Rc3 {[%clk 0:00:10.3]}
27... Bd4 {[%clk 0:00:28.4]} 28. Rg3 {[%clk 0:00:10.1]} 28... Re5 {[%clk
0:00:17.5]} 29. h3 {[%clk 0:00:08]} 29... Bd5 {[%clk 0:00:15.4]} 30. Bb4 {[%clk
0:00:07]} 30... Re2 {[%clk 0:00:14.8]} 0

[Event "Torneo Nuevo Centro. Jornada 11"]
[Site "Chess.com"]
[Date "2020.08.28"]
[Round "6"]
[White "Perrot, Fabien "]
[Black "Fente Fernandez, Jose Ignacio"]
[Result "1-0"]
[WhiteElo "1186"]
[BlackElo "1546"]
[TimeControl "180+2"]
[EndTime "11:32:43 PDT"]
[Termination "Victoria de InspiredMinds por abandono"]

1. d4 {[%clk 0:03:01.9]} 1... d5 {[%clk 0:02:57.2]} 2. Nf3 {[%clk 0:03:03.2]}
2... c6 {[%clk 0:02:57.9]} 3. Bf4 {[%clk 0:03:02.1]} 3... Bf5 {[%clk 0:02:58.5]}
4. e3 {[%clk 0:03:03.3]} 4... Nf6 {[%clk 0:02:55.9]} 5. Bd3 {[%clk 0:03:04.3]}
5... Bxd3 {[%clk 0:02:50.4]} 6. Qxd3 {[%clk 0:03:06.2]} 6... Nbd7 {[%clk
0:02:50.2]} 7. O-O {[%clk 0:03:07.6]} 7... g6 {[%clk 0:02:45]} 8. Re1 {[%clk
0:03:08.8]} 8... Bg7 {[%clk 0:02:45.6]} 9. c4 {[%clk 0:03:06.4]} 9... O-O {[%clk
0:02:44]} 10. c5 {[%clk 0:03:04.4]} 10... b6 {[%clk 0:02:43.2]} 11. cxb6 {[%clk
0:03:00.7]} 11... Nxb6 {[%clk 0:02:45.1]} 12. Ne5 {[%clk 0:03:02]} 12... Rc8
{[%clk 0:02:36]} 13. Rc1 {[%clk 0:03:02.6]} 13... Qe8 {[%clk 0:02:23.9]} 14. Nd2
{[%clk 0:03:02.1]} 14... Nfd7 {[%clk 0:02:22.5]} 15. Qa6 {[%clk 0:03:00.9]}
15... Nxe5 {[%clk 0:02:17.9]} 16. Bxe5 {[%clk 0:03:01.3]} 16... f6 {[%clk
0:02:14.6]} 17. Bg3 {[%clk 0:03:02]} 17... e5 {[%clk 0:02:15.7]} 18. Qxa7 {[%clk
0:02:58.6]} 18... Nc4 {[%clk 0:02:08]} 19. Nxc4 {[%clk 0:02:53.1]} 19... dxc4
{[%clk 0:02:09.7]} 20. Rxc4 {[%clk 0:02:45]} 20... exd4 {[%clk 0:02:07.4]} 21.
Qxd4 {[%clk 0:02:39.6]} 21... f5 {[%clk 0:02:02.9]} 22. Qd2 {[%clk 0:01:57.6]}
22... Rd8 {[%clk 0:01:25.4]} 23. Qc2 {[%clk 0:01:26.8]} 23... Rb8 {[%clk
0:00:59.5]} 24. Rb1 {[%clk 0:01:18.9]} 24... Ra8 {[%clk 0:00:57.4]} 25. a3
{[%clk 0:01:01.9]} 25... Ra6 {[%clk 0:00:45.4]} 26. Ra4 {[%clk 0:00:41.5]} 26...
Rb6 {[%clk 0:00:28.3]} 27. Rb4 {[%clk 0:00:31.7]} 27... Rxb4 {[%clk 0:00:15.3]}
28. axb4 {[%clk 0:00:32.4]} 28... Qd7 {[%clk 0:00:16.6]} 29. Qc4+ {[%clk
0:00:32.3]} 29... Kh8 {[%clk 0:00:13.5]} 30. h3 {[%clk 0:00:22.2]} 30... Rd8
{[%clk 0:00:11.9]} 31. Qe2 {[%clk 0:00:18.7]} 31... Qb7 {[%clk 0:00:08.4]} 32.
Qc4 {[%clk 0:00:16]} 32... Qb5 {[%clk 0:00:07]} 33. Qxb5 {[%clk 0:00:16.5]}
33... cxb5 {[%clk 0:00:08.3]} 34. Bc7 {[%clk 0:00:15.2]} 34... Rd1+ {[%clk
0:00:09.4]} 35. Rxd1 {[%clk 0:00:14.8]} 1

[Event "Torneo Nuevo Centro. Jornada 11"]
[Site "Chess.com"]
[Date "2020.08.28"]
[Round "6"]
[White "Rodriguez Rodriguez, Joan David "]
[Black "Conon, Catalin"]
[Result "0-1"]
[WhiteElo "1783"]
[BlackElo "1920"]
[TimeControl "180+2"]
[EndTime "11:32:58 PDT"]
[Termination "Victoria de CatalinConon por tiempo"]

1. d4 {[%clk 0:03:01.9]} 1... Nf6 {[%clk 0:02:59.8]} 2. c4 {[%clk 0:03:02.7]}
2... g6 {[%clk 0:03:01]} 3. Nc3 {[%clk 0:03:03.6]} 3... Bg7 {[%clk 0:03:02]} 4.
e4 {[%clk 0:03:04.5]} 4... d6 {[%clk 0:03:03.7]} 5. Nf3 {[%clk 0:03:05.4]} 5...
O-O {[%clk 0:02:59.1]} 6. Be2 {[%clk 0:03:06.5]} 6... e5 {[%clk 0:02:57.9]} 7.
dxe5 {[%clk 0:03:07.2]} 7... dxe5 {[%clk 0:02:58.5]} 8. Qxd8 {[%clk 0:03:09.1]}
8... Rxd8 {[%clk 0:02:59.7]} 9. Bg5 {[%clk 0:03:10.8]} 9... Re8 {[%clk
0:02:30.1]} 10. O-O {[%clk 0:03:09]} 10... c6 {[%clk 0:02:29.5]} 11. Rfe1 {[%clk
0:03:05.5]} 11... Nbd7 {[%clk 0:02:18.6]} 12. b4 {[%clk 0:03:03.9]} 12... b6
{[%clk 0:02:02]} 13. Rad1 {[%clk 0:02:52.6]} 13... Bb7 {[%clk 0:02:00.1]} 14. a4
{[%clk 0:02:45.1]} 14... Rad8 {[%clk 0:01:51.8]} 15. h3 {[%clk 0:02:41.7]} 15...
c5 {[%clk 0:01:39.3]} 16. b5 {[%clk 0:02:36.1]} 16... h5 {[%clk 0:01:18.2]} 17.
Nd5 {[%clk 0:02:20.4]} 17... Bxd5 {[%clk 0:01:16]} 18. cxd5 {[%clk 0:02:22.3]}
18... Rc8 {[%clk 0:01:03.8]} 19. Nd2 {[%clk 0:02:22.2]} 19... Kh7 {[%clk
0:01:00.3]} 20. Nc4 {[%clk 0:02:22.2]} 20... Nxe4 {[%clk 0:01:00.9]} 21. Be3
{[%clk 0:01:39.5]} 21... f5 {[%clk 0:00:56.3]} 22. f3 {[%clk 0:01:37.4]} 22...
Nc3 {[%clk 0:00:57.4]} 23. Rc1 {[%clk 0:01:36.9]} 23... Nxe2+ {[%clk 0:00:58.8]}
24. Rxe2 {[%clk 0:01:38.8]} 24... Rcd8 {[%clk 0:00:59.1]} 25. Bg5 {[%clk
0:01:09.6]} 25... Nf6 {[%clk 0:00:59.1]} 26. Nxe5 {[%clk 0:00:53.8]} 26... Rxd5
{[%clk 0:00:38.8]} 27. f4 {[%clk 0:00:47.3]} 27... Ne4 {[%clk 0:00:39.5]} 28.
Nc6 {[%clk 0:00:33.3]} 28... Bd4+ {[%clk 0:00:26.5]} 29. Kh2 {[%clk 0:00:29.9]}
29... Rd7 {[%clk 0:00:18.1]} 30. Rce1 {[%clk 0:00:26.1]} 30... Kg7 {[%clk
0:00:18.9]} 31. Rd1 {[%clk 0:00:15.5]} 31... Rf8 {[%clk 0:00:13.9]} 32. Be7
{[%clk 0:00:06.3]} 32... Rf7 {[%clk 0:00:10.9]} 33. Bg5 {[%clk 0:00:07]} 33...
Nxg5 {[%clk 0:00:11.6]} 34. fxg5 {[%clk 0:00:08.9]} 34... f4 {[%clk 0:00:06.4]}
0

[Event "Torneo Nuevo Centro. Jornada 11"]
[Site "Chess.com"]
[Date "2020.08.28"]
[Round "6"]
[White "Rabbani Perez, Oumaima "]
[Black "Méndez Giménez , Néstor Emmanuel"]
[Result "0-1"]
[WhiteElo "724"]
[BlackElo "1240"]
[TimeControl "180+2"]
[EndTime "11:33:14 PDT"]
[Termination "Victoria de NestorMendez8 por jaque mate"]

1. e3 {[%clk 0:03:01.9]} 1... e6 {[%clk 0:02:55.7]} 2. Nc3 {[%clk 0:02:54.3]}
2... d5 {[%clk 0:02:55.1]} 3. d4 {[%clk 0:02:51.7]} 3... Nc6 {[%clk 0:02:52.3]}
4. Nf3 {[%clk 0:02:51.1]} 4... Nf6 {[%clk 0:02:49.7]} 5. Ng5 {[%clk 0:02:50]}
5... Bb4 {[%clk 0:02:48]} 6. Bd2 {[%clk 0:02:47]} 6... O-O {[%clk 0:02:48]} 7.
Bb5 {[%clk 0:02:40.2]} 7... Bd7 {[%clk 0:02:41]} 8. O-O {[%clk 0:02:37.8]} 8...
a6 {[%clk 0:02:40.1]} 9. Ba4 {[%clk 0:02:33.2]} 9... Ne4 {[%clk 0:02:38.2]} 10.
Ncxe4 {[%clk 0:02:26.4]} 10... dxe4 {[%clk 0:02:32.8]} 11. Bxb4 {[%clk
0:02:26.2]} 11... Nxb4 {[%clk 0:02:30.9]} 12. Bxd7 {[%clk 0:02:25.2]} 12... Qxg5
{[%clk 0:02:29.4]} 13. Ba4 {[%clk 0:02:15.3]} 13... b5 {[%clk 0:02:29.6]} 14.
Bb3 {[%clk 0:02:10.9]} 14... Nd5 {[%clk 0:02:25.8]} 15. Bxd5 {[%clk 0:02:09.5]}
15... exd5 {[%clk 0:02:24.4]} 16. f3 {[%clk 0:02:07.1]} 16... exf3 {[%clk
0:02:23.4]} 17. Rxf3 {[%clk 0:02:01]} 17... Rfe8 {[%clk 0:02:22.6]} 18. g3
{[%clk 0:01:59.7]} 18... Rxe3 {[%clk 0:02:21.4]} 19. h4 {[%clk 0:01:58.3]} 19...
Qh6 {[%clk 0:02:18.7]} 20. Rxe3 {[%clk 0:01:50.5]} 20... Qxe3+ {[%clk
0:02:18.2]} 21. Kg2 {[%clk 0:01:44.1]} 21... Qe4+ {[%clk 0:02:17.4]} 22. Kf2
{[%clk 0:01:38.2]} 22... Qf5+ {[%clk 0:02:14.7]} 23. Qf3 {[%clk 0:01:29.1]}
23... Qxc2+ {[%clk 0:02:14.1]} 24. Qe2 {[%clk 0:01:20.3]} 24... Qc4 {[%clk
0:02:13.6]} 25. Qe7 {[%clk 0:01:15.5]} 25... Qxd4+ {[%clk 0:02:12.5]} 26. Qe3
{[%clk 0:01:10.8]} 26... Qxb2+ {[%clk 0:02:12.1]} 27. Qe2 {[%clk 0:01:06.5]}
27... Qxa1 {[%clk 0:02:12]} 28. g4 {[%clk 0:01:00.9]} 28... Qf6+ {[%clk
0:02:03.6]} 29. Kg3 {[%clk 0:00:53]} 29... g6 {[%clk 0:02:02.2]} 30. h5 {[%clk
0:00:51]} 30... gxh5 {[%clk 0:02:02]} 31. gxh5 {[%clk 0:00:49.7]} 31... Qc3+
{[%clk 0:02:01.4]} 32. Qf3 {[%clk 0:00:46.4]} 32... Qxf3+ {[%clk 0:01:49.7]} 33.
Kxf3 {[%clk 0:00:44.6]} 33... Re8 {[%clk 0:01:51.6]} 34. Kg4 {[%clk 0:00:42.6]}
34... d4 {[%clk 0:01:51.8]} 35. Kf3 {[%clk 0:00:42.2]} 35... d3 {[%clk
0:01:52.3]} 36. Kf2 {[%clk 0:00:42.4]} 36... d2 {[%clk 0:01:51.6]} 37. Kg3
{[%clk 0:00:37.5]} 37... d1=N {[%clk 0:01:49.7]} 38. Kf3 {[%clk 0:00:34.5]}
38... c5 {[%clk 0:01:49.9]} 39. Kg3 {[%clk 0:00:33.7]} 39... c4 {[%clk
0:01:50.5]} 40. a4 {[%clk 0:00:31.8]} 40... bxa4 {[%clk 0:01:50.4]} 41. h6
{[%clk 0:00:31.1]} 41... c3 {[%clk 0:01:50.1]} 42. Kg4 {[%clk 0:00:30.8]} 42...
c2 {[%clk 0:01:49.5]} 43. Kg5 {[%clk 0:00:30.9]} 43... c1=B+ {[%clk 0:01:46.6]}
44. Kh5 {[%clk 0:00:29.3]} 44... Re5+ {[%clk 0:01:45.9]} 45. Kg4 {[%clk
0:00:28.7]} 45... Nf2+ {[%clk 0:01:44.3]} 46. Kf3 {[%clk 0:00:26.9]} 46... Rf5+
{[%clk 0:01:42.3]} 47. Ke2 {[%clk 0:00:25]} 47... a3 {[%clk 0:01:41.7]} 48. Kf1
{[%clk 0:00:23.6]} 48... a2 {[%clk 0:01:38.3]} 49. Kg2 {[%clk 0:00:21.2]} 49...
a1=Q {[%clk 0:01:35.6]} 50. Kg3 {[%clk 0:00:19.6]} 50... Qc3+ {[%clk 0:01:03]}
51. Kh4 {[%clk 0:00:15.3]} 51... Qh3# {[%clk 0:01:00.3]} 0

[Event "Torneo Nuevo Centro. Jornada 11"]
[Site "Chess.com"]
[Date "2020.08.28"]
[Round "6"]
[White "Fernández Martin, Carlos"]
[Black "Bosch Jordà, Ricard"]
[Result "1-0"]
[WhiteElo "1784"]
[BlackElo "1907"]
[TimeControl "180+2"]
[EndTime "11:33:17 PDT"]
[Termination "Victoria de Pistachomortal por jaque mate"]

1. e4 {[%clk 0:03:01.9]} 1... c5 {[%clk 0:03:00.9]} 2. Nc3 {[%clk 0:03:01.2]}
2... Nc6 {[%clk 0:03:00.2]} 3. g3 {[%clk 0:03:01.8]} 3... g6 {[%clk 0:03:00.7]}
4. Bg2 {[%clk 0:03:02.4]} 4... Bg7 {[%clk 0:03:01.5]} 5. d3 {[%clk 0:03:03.5]}
5... e6 {[%clk 0:02:44]} 6. Nh3 {[%clk 0:03:00.7]} 6... Nge7 {[%clk 0:02:44.2]}
7. O-O {[%clk 0:02:42.2]} 7... O-O {[%clk 0:02:42.8]} 8. Bg5 {[%clk 0:02:39.8]}
8... h6 {[%clk 0:02:40.5]} 9. Be3 {[%clk 0:02:38.9]} 9... b6 {[%clk 0:02:40.4]}
10. f4 {[%clk 0:02:38]} 10... d5 {[%clk 0:02:40.4]} 11. Ne2 {[%clk 0:02:22.6]}
11... Bb7 {[%clk 0:02:33.9]} 12. e5 {[%clk 0:02:22.7]} 12... Nf5 {[%clk
0:02:30.1]} 13. Bf2 {[%clk 0:02:23.3]} 13... Qe7 {[%clk 0:02:02.7]} 14. c3
{[%clk 0:02:23.1]} 14... d4 {[%clk 0:02:01.3]} 15. g4 {[%clk 0:02:18.7]} 15...
Ne3 {[%clk 0:01:57.7]} 16. Bxe3 {[%clk 0:02:18.8]} 16... dxe3 {[%clk 0:01:57.2]}
17. Qc1 {[%clk 0:02:18.9]} 17... Rad8 {[%clk 0:01:43.6]} 18. Qxe3 {[%clk
0:02:17.5]} 18... Na5 {[%clk 0:01:10.5]} 19. Nf2 {[%clk 0:02:04.3]} 19... Bxg2
{[%clk 0:01:09]} 20. Kxg2 {[%clk 0:02:05.1]} 20... Nc6 {[%clk 0:01:07.9]} 21.
Ne4 {[%clk 0:02:04.2]} 21... Kh7 {[%clk 0:01:01.3]} 22. g5 {[%clk 0:02:03.8]}
22... h5 {[%clk 0:00:53]} 23. Rad1 {[%clk 0:02:00.8]} 23... Qb7 {[%clk
0:00:35.8]} 24. Kg1 {[%clk 0:01:56.2]} 24... Ne7 {[%clk 0:00:35.8]} 25. N2g3
{[%clk 0:01:50.7]} 25... h4 {[%clk 0:00:13]} 26. Ne2 {[%clk 0:01:41]} 26... Nf5
{[%clk 0:00:12.7]} 27. Qh3 {[%clk 0:01:38.2]} 27... Rh8 {[%clk 0:00:12]} 28. Rf2
{[%clk 0:00:57.8]} 28... Kg8 {[%clk 0:00:12]} 29. Rg2 {[%clk 0:00:51.8]} 29...
c4 {[%clk 0:00:12.6]} 30. Nf6+ {[%clk 0:00:34]} 30... Kf8 {[%clk 0:00:11]} 31.
d4 {[%clk 0:00:32.2]} 31... Qa6 {[%clk 0:00:08.6]} 32. a3 {[%clk 0:00:31]} 32...
Qb5 {[%clk 0:00:08.7]} 33. Nc1 {[%clk 0:00:23.3]} 33... Qc6 {[%clk 0:00:08.1]}
34. Na2 {[%clk 0:00:22.1]} 34... a5 {[%clk 0:00:08.5]} 35. Nc1 {[%clk
0:00:22.5]} 35... b5 {[%clk 0:00:07.9]} 36. Re2 {[%clk 0:00:20.7]} 36... b4
{[%clk 0:00:07.9]} 37. axb4 {[%clk 0:00:19.9]} 37... axb4 {[%clk 0:00:08.6]} 38.
cxb4 {[%clk 0:00:21.1]} 38... Nxd4 {[%clk 0:00:08.8]} 39. Red2 {[%clk
0:00:20.7]} 39... Nf3+ {[%clk 0:00:06.9]} 40. Qxf3 {[%clk 0:00:21.7]} 40... Qxf3
{[%clk 0:00:06.9]} 41. Rxd8+ {[%clk 0:00:22.1]} 41... Ke7 {[%clk 0:00:07.9]} 42.
R1d7# {[%clk 0:00:22.5]} 1